[Event "13th KIIT Festival-A 2022"]
[Site "Bhubaneswar"]
[Date "2022.05.24"]
[Round "4.6"]
[White "Mirzoev, Azer"]
[Black "Rohith Krishna S"]
[Result "1/2-1/2"]
[ECO "E14"]
[WhiteElo "2476"]
[BlackElo "2337"]
[Annotator "TA"]
[PlyCount "90"]
[EventDate "2022.05.15"]
[EventType "swiss"]
[EventCountry "IND"]
[SourceTitle "playchess.com"]
[Source "ChessBase"]
[SourceQuality "1"]
[TimeControl "5400+30"]

{[%evp 18,90,14,4,24,0,4,0,11,6,30,0,0,0,10,0,0,-7,0,-5,8,11,22,0,0,0,9,9,2,6,22,0,7,13,0,0,0,0,0,0,0,0,13,0,8,0,6,4,2,0,0,0,12,2,18,-3,17,10,16,12,14,0,7,2,15,-10,-4,-16,-9,-5,0,-8,0,-5,0]} 1. d4 {[%emt 0:00:11]} Nf6 {[%emt 0:00:55]} 2. Nf3 {[%emt 0:00:14]} e6 {[%emt 0:00:14]} 3. c4 {[%emt 0:00:05]} d5 {[%emt 0:00:31]} 4. e3 {[%emt 0:00:07]} Be7 {[%emt 0:01:08]} 5. Nbd2 {[%emt 0:00:23]} O-O {[%emt 0:02:20]} 6. b3 {[%emt 0:00:06]} b6 {[%emt 0:03:45]} 7. Bb2 {[%emt 0:00:19]} Bb7 {[%emt 0:00:07]} 8. Bd3 {[%emt 0:00:09]} Nbd7 {[%emt 0:01:05]} 9. O-O {[%emt 0:00:12]} c5 {[%emt 0:01:05]} 10. Qe2 {[%emt 0:00:12]} Rc8 {[%emt 0:04:17] E14: Queen's Indian: Classical Variation (4 e3).} 11. Rac1 {[%emt 0:03:56]} Rc7 {[%emt 0:09:24]} 12. Rfd1 {[%emt 0:03:03]} Qa8 {[%emt 0:01:31]} 13. cxd5 {[%emt 0:01:42]} Nxd5 {[%emt 0:03:54]} 14. Bb1 {[%emt 0:00:29] [#]} cxd4 $146 {[%emt 0:08:51] The position is equal.} ({Predecessor:} 14... Rfc8 15. Nc4 N5f6 16. dxc5 Rxc5 17. Kh1 Nf8 18. Nce5 Ne4 19. Rxc5 Rxc5 20. Kg1 Nc3 21. Bxc3 Rxc3 {0-1 (35) Nugumanov,B (2323)-Aleksandrov,A (2607) Pavlodar 2012}) 15. Rxc7 {[%emt 0:01:28]} Nxc7 {[%emt 0:00:03]} 16. Bxd4 {[%emt 1:25:54]} Rd8 {[%emt 0:08:37]} 17. h3 {[%emt 0:00:00]} Nf8 {[%emt 0:04:31]} 18. Bb2 {[%emt 0:00:00]} f6 {[%emt 0:08:16]} 19. Rc1 {[%emt 0:00:00]} Rd7 {[%emt 0:00:57]} 20. Qc4 {[%emt 0:00:00]} Nd5 {[%emt 0:03:21]} 21. Qg4 {[%emt 0:00:00]} Rc7 {[%emt 0:03:45]} 22. Rxc7 {[%emt 0:00:00]} Nxc7 {[%emt 0:00:05]} 23. Nd4 {[%emt 0:00:00]} Qc8 {[%emt 0:02:13]} 24. Be4 {[%emt 0:00:00]} Bxe4 {[%emt 0:04:29]} 25. Qxe4 {[%emt 0:00:00]} Nd5 {[%emt 0:00:44]} 26. N2f3 {[%emt 0:00:00]} Qd7 {[%emt 0:03:54]} 27. a3 {[%emt 0:00:00]} Bd6 {[%emt 0:04:06]} 28. b4 {[%emt 0:00:00]} Kf7 {[%emt 0:03:09]} 29. Qc2 {[%emt 0:00:00]} Ne7 {[%emt 0:00:39]} 30. Qc4 {[%emt 0:00:00]} Ke8 {[%emt 0:03:30]} 31. Nd2 {[%emt 0:00:00]} Bb8 {[%emt 0:04:02]} 32. Qc2 {[%emt 0:00:00]} Qc7 {[%emt 0:01:15]} 33. Qa4+ {[%emt 0:00:00]} Qd7 {[%emt 0:00:39]} 34. Qd1 {[%emt 0:00:00]} Qc7 {[%emt 0:01:28]} 35. N4f3 {[%emt 0:00:00] Prevents Qh2+.} Qc6 {[%emt 0:00:49]} 36. Qb1 {[%emt 0:00:00]} Nc8 {[%emt 0:00:45]} 37. Nd4 {[%emt 0:00:00]} Qd5 {[%emt 0:00:52]} 38. Qc2 {[%emt 0:00:00]} Ne7 {[%emt 0:00:17]} 39. g3 {[%emt 0:00:00]} (39. Nc4 {keeps more tension.} e5 40. Ne2 Ne6 41. a4) 39... Qd7 {[%emt 0:00:17]} 40. h4 $1 $36 {[%emt 0:00:00][%mdl 2048] White has the initiative.} e5 {[%emt 0:00:23]} 41. N4f3 {[%emt 0:00:00]} Qc6 {[%emt 0:00:14]} 42. Qb3 {[%emt 0:00:00]} Qd5 {[%emt 0:00:12]} 43. Qc2 {[%emt 0:00:42]} Qc6 {[%emt 0:00:07]} 44. Qb3 {[%emt 0:00:22]} Qd5 {[%emt 0:00:06]} 45. Qc2 {[%emt 0:00:03]} Qc6 {[%emt 0:00:04] An interesting draw.  Weighted Error Value: White=0.06 (flawless) /Black=0.06 (flawless)} 1/2-1/2

[Event "13th KIIT Festival-A 2022"]
[Site "Bhubaneswar"]
[Date "2022.05.24"]
[Round "4.7"]
[White "Krishnan Ritvik"]
[Black "Stupak, Kirill"]
[Result "0-1"]
[ECO "B12"]
[WhiteElo "2023"]
[BlackElo "2440"]
[Annotator "TA"]
[PlyCount "128"]
[EventDate "2022.05.15"]
[EventType "swiss"]
[EventCountry "IND"]
[SourceTitle "playchess.com"]
[Source "ChessBase"]
[SourceQuality "1"]
[TimeControl "5400+30"]

{[%evp 10,128,74,63,77,18,29,19,12,26,23,20,20,5,0,2,13,0,0,-22,-18,-43,-22,-27,-17,-25,-11,-41,-38,-41,-10,-13,0,0,12,9,8,18,0,0,0,-3,-15,-42,-41,-41,-35,-97,-100,-98,-100,-107,-101,-103,-45,-90,-66,-59,-64,-54,-55,-41,-54,-118,-118,-118,-118,-118,-118,-125,-118,-118,-118,-118,-119,-160,-89,-167,0,-160,-154,-166,-132,-166,-121,-166,-143,-146,-146,-166,-157,-166,-115,-115,-115,-115,-116,-174,-182,-223,-222,-228,-227,-220,-214,-452,-448,-419,-439,-566,-542,-561,-486,-516,-502,-599,-590,-810,-513,-1475,-1456]} 1. e4 {[%emt 0:01:06]} c6 {[%emt 0:00:01]} 2. d4 {[%emt 0:00:08]} d5 {[%emt 0:00:02]} 3. Nd2 {[%emt 0:00:01]} g6 {[%emt 0:00:16]} 4. Ngf3 {[%emt 0:00:46]} Bg7 {[%emt 0:00:08]} 5. c3 {[%emt 0:00:50]} Nh6 {[%emt 0:00:10]} 6. Bd3 {[%emt 0:02:14]} O-O {[%emt 0:00:46] B12: Caro-Kann: Advance Variation.} 7. h3 {[%emt 0:02:30]} (7. O-O $16) 7... f6 $11 {[%emt 0:00:15]} 8. O-O {[%emt 0:02:24]} e5 {[%emt 0:02:16] The position is equal.} 9. Re1 {[%emt 0:08:37] Threatening exd5.} Nf7 {[%emt 0:00:15]} 10. dxe5 {[%emt 0:07:44]} fxe5 {[%emt 0:00:10]} 11. b3 {[%emt 0:00:51] [#]} Re8 $146 {[%emt 0:02:14]} ({Predecessor:} 11... Nd7 12. Ba3 Re8 13. Nf1 Nf8 14. Qc2 Qa5 15. Bb2 Be6 16. Ne3 Rad8 17. Nd2 Rd7 {1-0 (42) Pulik,K (2137)-Sopur,L (2419) Jastrzebia Gora 2015}) 12. a4 {[%emt 0:06:31]} Be6 {[%emt 0:03:36]} 13. Ba3 {[%emt 0:03:22]} Nd7 {[%emt 0:00:43]} 14. Qe2 {[%emt 0:06:03]} Nf6 {[%emt 0:16:35]} 15. Kh2 {[%emt 0:06:33]} Qc7 {[%emt 0:07:25]} 16. c4 {[%emt 0:03:33]} d4 {[%emt 0:02:14]} 17. c5 {[%emt 0:01:00]} Nd7 {[%emt 0:01:13]} 18. Rac1 {[%emt 0:03:53]} a5 {[%emt 0:01:51]} 19. Bc4 {[%emt 0:01:28]} Nf8 {[%emt 0:01:54]} 20. Red1 $1 {[%emt 0:02:16]} Bxc4 {[%emt 0:03:16]} 21. Nxc4 {[%emt 0:03:44]} Ne6 {[%emt 0:00:11]} 22. Ne1 {[%emt 0:00:44]} Nf4 {[%emt 0:04:14]} 23. Qf1 {[%emt 0:01:39]} Ng5 {[%emt 0:02:20]} 24. Nd6 {[%emt 0:01:06]} Rf8 {[%emt 0:00:12]} 25. Qc4+ {[%emt 0:01:42]} Kh8 {[%emt 0:01:12][%cal Of4h3]} 26. h4 {[%emt 0:02:48]} Nf7 {[%emt 0:02:29]} 27. g3 {[%emt 0:01:34]} Nh5 $36 {[%emt 0:01:33][%mdl 2048] Hoping for ...Nxd6. Black has good play.} 28. Qe2 {[%emt 0:04:28]} (28. Rc2 $15) 28... Nxd6 $17 {[%emt 0:04:59]} 29. cxd6 {[%emt 0:00:01] [#]} Qd7 {[%emt 0:00:01]} 30. Nd3 {[%emt 0:01:07]} b6 {[%emt 0:00:06] Against Bc5} 31. Nb2 {[%emt 0:02:22]} Nf6 {[%emt 0:06:33]} (31... c5 $17 32. Nc4 Rab8) 32. f3 {[%emt 0:01:19]} Rab8 {[%emt 0:06:50]} 33. Nc4 {[%emt 0:05:53]} Qe6 {[%emt 0:00:06]} 34. Qg2 {[%emt 0:01:18]} c5 {[%emt 0:08:00]} 35. Qh3 $1 {[%emt 0:01:31]} Rfe8 {[%emt 0:00:41]} 36. Rd3 {[%emt 0:01:10]} (36. Rf1 $15) 36... Bf8 {[%emt 0:00:49][%cal Bg7f8,Bf8d6,Bd6c7][%mdl 32]} 37. Rc2 {[%emt 0:02:14]} Bxd6 {[%emt 0:02:05]} 38. Qxe6 {[%emt 0:00:02]} Rxe6 {[%emt 0:00:02]} 39. Bc1 {[%emt 0:00:01]} Bc7 {[%emt 0:01:00]} 40. Na3 {[%emt 0:00:17]} Rf8 {[%emt 0:00:52]} 41. Kg2 {[%emt 0:00:16]} Kg7 {[%emt 0:00:06]} 42. g4 {[%emt 0:01:21]} Nd7 {[%emt 0:01:24]} (42... h5 $142 43. g5 Ne8) 43. Rc4 {[%emt 0:01:14]} (43. g5 $17) 43... Nf6 {[%emt 0:02:28][%cal Bd7f6,Bf6e8,Be8d6][%mdl 32]} 44. Rc2 $1 {[%emt 0:00:24]} Ne8 {[%emt 0:00:01]} 45. Nc4 {[%emt 0:01:45]} Nd6 {[%emt 0:00:24]} 46. Bd2 {[%emt 0:00:12]} Rb8 {[%emt 0:00:16]} 47. Na3 {[%emt 0:00:37]} Re7 {[%emt 0:01:04]} 48. Bg5 {[%emt 0:02:49]} Ree8 {[%emt 0:19:12]} 49. Bd2 {[%emt 0:00:14]} Kf7 {[%emt 0:00:00]} 50. Be1 {[%emt 0:00:42]} Ke6 {[%emt 0:00:00]} (50... h5 $19 51. g5 Rf8) 51. Bg3 {[%emt 0:00:31]} Bd8 {[%emt 0:00:00]} 52. Be1 {[%emt 0:02:01]} Be7 {[%emt 0:00:00]} 53. Kg3 {[%emt 0:00:34]} (53. Bg3 $17 {keeps fighting.}) 53... Rec8 $19 {[%emt 0:00:00]} 54. Nc4 {[%emt 0:01:24]} Bd8 {[%emt 0:00:00]} 55. Bd2 {[%emt 0:01:09]} b5 {[%emt 0:00:00]} 56. axb5 {[%emt 0:00:37]} Rxb5 {[%emt 0:00:00][%cal Bb8b5,Bb5b7,Bb7f7][%mdl 32] [#] aiming for ...Rcb8. The board is on fire.} 57. Na3 $2 {[%emt 0:01:28]} (57. Nb2) 57... Rb7 {[%emt 0:00:00]} 58. Nc4 {[%emt 0:00:14]} Rcb8 {[%emt 0:00:00]} 59. Nxe5 {[%emt 0:00:53] Black is clearly winning.} Nxe4+ {[%emt 0:00:00]} ({Inferior is} 59... Kxe5 60. Rxc5+ Ke6 61. Bf4 $19) 60. fxe4 {[%emt 0:00:06] Black must now prevent Nc6.} Kxe5 {[%emt 0:00:00]} 61. Kf3 {[%emt 0:05:39]} Rf7+ {[%emt 0:00:00]} 62. Ke2 {[%emt 0:00:00]} Kxe4 {[%emt 0:00:00]} 63. Rh3 {[%emt 0:00:00]} Bxh4 {[%emt 0:00:00]} 64. Rxc5 {[%emt 0:00:00]} (64. Rc4 $142 g5 65. Ra4) 64... d3+ {[%emt 0:00:00] Weighted Error Value: White=0.33/Black=0.14 (very precise)} 0-1

[Event "13th KIIT Festival-A 2022"]
[Site "Bhubaneswar"]
[Date "2022.05.24"]
[Round "4.8"]
[White "Manish Anto Cristiano F"]
[Black "Paichadze, Luka"]
[Result "1/2-1/2"]
[ECO "E11"]
[WhiteElo "2071"]
[BlackElo "2567"]
[Annotator "TA"]
[PlyCount "72"]
[EventDate "2022.05.15"]
[EventType "swiss"]
[EventCountry "IND"]
[SourceTitle "playchess.com"]
[Source "ChessBase"]
[SourceQuality "1"]
[TimeControl "5400+30"]

{[%evp 13,72,12,25,30,35,42,25,3,66,65,123,120,135,131,131,119,125,121,133,129,132,99,99,96,101,67,78,16,25,38,31,35,110,110,110,101,110,110,110,110,115,76,111,86,81,80,87,89,88,95,89,52,86,86,88,0,88,0,87,0,94]} 1. d4 {[%emt 0:00:28]} Nf6 {[%emt 0:00:06]} 2. c4 {[%emt 0:00:12]} e6 {[%emt 0:00:05]} 3. Nf3 {[%emt 0:00:17]} Bb4+ {[%emt 0:00:13]} 4. Bd2 {[%emt 0:00:29]} Qe7 {[%emt 0:00:43]} 5. e3 {[%emt 0:00:29]} O-O {[%emt 0:00:29]} 6. Bd3 {[%emt 0:00:12]} Bxd2+ {[%emt 0:00:23]} 7. Qxd2 {[%emt 0:00:11]} d6 {[%emt 0:00:09]} 8. Nc3 {[%emt 0:00:16] E11: Bogo-Indian.} e5 {[%emt 0:00:25] And now ...e4 would win.} 9. Bc2 {[%emt 0:00:54]} Bg4 {[%emt 0:04:52] [#]} 10. O-O-O $146 {[%emt 0:01:07] White has an edge.} ({Predecessor:} 10. Ng5 c6 11. O-O Nbd7 12. f3 Bh5 13. Rad1 Rad8 14. Rde1 Rfe8 15. f4 h6 16. Nge4 Nxe4 17. Nxe4 {1-0 (69) Praggnanandhaa,R (2608)-Terry,R (2504) Europe Echecs INT 2021}) 10... e4 {[%emt 0:07:40]} (10... Nbd7 $11) 11. h3 $1 $14 {[%emt 0:00:09]} Be6 {[%emt 0:00:21]} ({Less strong is} 11... exf3 12. hxg4 fxg2 13. Rh2 $18) ({Black should try} 11... Bxf3 $14 12. gxf3 exf3) 12. Nxe4 $16 {[%emt 0:00:25]} Bxc4 {[%emt 0:04:37]} 13. Nxf6+ {[%emt 0:00:10]} Qxf6 {[%emt 0:00:03] [#]} 14. Bxh7+ $1 {[%emt 0:00:12][%mdl 512]} Kxh7 {[%emt 0:01:21]} 15. Qc2+ {[%emt 0:00:07]} Kg8 {[%emt 0:00:30] ...Bd5 is the strong threat.} 16. Qxc4 {[%emt 0:00:08]} Nd7 {[%emt 0:00:12]} 17. Qd5 {[%emt 0:13:35] White is more active.} ({But not} 17. Qxc7 $2 Rac8 18. Qxc8 Rxc8+ 19. Kd2 Qg6 $19) 17... c6 {[%emt 0:00:49]} 18. Qg5 {[%emt 0:00:36]} Qe6 {[%emt 0:00:06]} 19. Kb1 {[%emt 0:21:01]} Nf6 {[%emt 0:00:25]} 20. Qf4 {[%emt 0:00:39]} ({White should play} 20. Nd2 $16) 20... Nd5 $1 $11 {[%emt 0:00:58]} 21. Qg4 {[%emt 0:01:23]} f5 {[%emt 0:00:36]} 22. Qh5 {[%emt 0:00:19]} Nb4 {[%emt 0:10:45] [#]} (22... Rae8 $1 $14) 23. Qh7+ $3 $16 {[%emt 0:00:20][%mdl 512]} Kxh7 {[%emt 0:00:24]} 24. Ng5+ {[%emt 0:00:06]} Kh6 {[%emt 0:00:42]} 25. Nxe6 {[%emt 0:00:09]} Rf6 {[%emt 0:00:10]} 26. Nf4 {[%emt 0:01:00]} g5 {[%emt 0:00:08]} 27. Nd3 {[%emt 0:00:19]} Nd5 {[%emt 0:01:11]} 28. g4 {[%emt 0:03:56]} Re8 {[%emt 0:01:29]} 29. gxf5 {[%emt 0:13:44]} Rxf5 {[%emt 0:00:42]} 30. Rdg1 {[%emt 0:00:34]} Re4 {[%emt 0:08:16]} 31. Rh2 {[%emt 0:07:26]} Nf6 {[%emt 0:11:43]} 32. Rg3 {[%emt 0:01:38]} Nh5 {[%emt 0:03:15]} 33. Rg4 {[%emt 0:00:25]} Nf6 {[%emt 0:00:24]} 34. Rg3 {[%emt 0:01:35]} Nh5 $1 {[%emt 0:00:59]} 35. Rg4 {[%emt 0:00:14]} Nf6 {[%emt 0:00:05]} 36. Rg3 {[%emt 0:10:30] Against Rf3} Nh5 $1 {[%emt 0:05:40] Weighted Error Value: White=0.23 (precise) /Black=0.12 (very precise)} 1/2-1/2

[Event "13th KIIT Festival-A 2022"]
[Site "Bhubaneswar"]
[Date "2022.05.24"]
[Round "4.9"]
[White "Rahman, Ziaur"]
[Black "Rohit S"]
[Result "1-0"]
[ECO "A04"]
[WhiteElo "2431"]
[BlackElo "2141"]
[Annotator "TA"]
[PlyCount "73"]
[EventDate "2022.05.15"]
[EventType "swiss"]
[EventCountry "IND"]
[SourceTitle "playchess.com"]
[Source "ChessBase"]
[SourceQuality "1"]
[TimeControl "5400+30"]

{[%evp 9,73,-7,-8,-5,-4,-7,0,-7,-6,-4,5,0,0,0,0,-1,0,-1,0,0,1,0,27,1,18,24,48,52,75,89,75,77,90,78,103,64,106,54,133,112,141,27,10,8,90,97,291,283,543,540,462,355,277,260,394,0,162,45,286,312,870,858,1538,1501,2243,2221]} 1. Nf3 {[%emt 0:00:59]} c5 {[%emt 0:00:20]} 2. b3 {[%emt 0:01:07]} d6 {[%emt 0:04:54]} 3. c4 {[%emt 0:04:31]} e5 {[%emt 1:26:46]} 4. Nc3 {[%emt 0:00:08]} g6 {[%emt 0:00:00]} 5. Bb2 {[%emt 0:01:47]} Bg7 {[%emt 0:00:00]} 6. g3 {[%emt 0:00:28] A04: Unusual lines after 1 Nf3 and King's Indian Attack.} Ne7 {[%emt 0:00:00]} 7. Bg2 {[%emt 0:00:22]} Nbc6 {[%emt 0:00:00]} 8. O-O {[%emt 0:00:17] The position is equal.} O-O {[%emt 0:00:00]} 9. d3 {[%emt 0:00:26]} a6 {[%emt 0:00:00]} 10. e3 {[%emt 0:06:19]} b5 {[%emt 0:00:00]} 11. Nd2 {[%emt 0:02:05][%cal Oc3b5]} Rb8 {[%emt 0:00:00]} 12. Nd5 {[%emt 0:02:32] [#]} Be6 $146 {[%emt 0:00:00]} ({Predecessor:} 12... Bf5 13. Qe2 Qd7 14. f4 Bh3 15. Ne4 Nxd5 16. cxd5 Nb4 17. Bxh3 Qxh3 18. Nxd6 exf4 19. Bxg7 Kxg7 20. exf4 {0-1 (27) Praggnanandhaa,R (2608)-Krysa,L (2544) Chess.com INT 2021}) 13. Bc3 {[%emt 0:07:29]} f5 {[%emt 0:00:00]} 14. a3 {[%emt 0:04:59]} h6 {[%emt 0:00:00]} 15. Qc2 {[%emt 0:02:46]} Kh8 {[%emt 0:00:00]} 16. f4 {[%emt 0:02:27]} Bg8 {[%emt 0:00:00]} 17. Rae1 {[%emt 0:02:45]} b4 {[%emt 0:00:00] Threatens to win with ...Nxd5.} 18. Nxe7 {[%emt 0:05:22]} Nxe7 {[%emt 0:00:00]} 19. axb4 {[%emt 0:00:45]} cxb4 {[%emt 0:00:00]} 20. Bb2 {[%emt 0:00:35]} Qb6 {[%emt 0:00:00]} 21. Kh1 {[%emt 0:04:10]} Nc6 {[%emt 0:00:00]} 22. Qc1 {[%emt 0:06:08]} Rbd8 {[%emt 0:00:00]} 23. Qa1 {[%emt 0:03:36]} ({Better is} 23. e4 $16) 23... Rfe8 {[%emt 0:00:00]} ({Black should try} 23... Kh7 $14) 24. Nf3 {[%emt 0:01:25]} Na5 {[%emt 0:00:00]} 25. Qa4 {[%emt 0:02:41]} (25. Nh4 $16) 25... Nb7 $1 $11 {[%emt 0:00:00] And now ...Nc5 would win.} 26. d4 {[%emt 0:02:00] Against Nc5. Strongly threatening Nh4.} a5 {[%emt 0:00:00]} (26... e4 $11 {remains equal.} 27. Nd2 h5) 27. Nh4 $16 {[%emt 0:03:50]} (27. dxe5 $6 Nc5 28. Qa2 a4 $11) 27... Kh7 {[%emt 0:00:00]} (27... Bf7 $16 {was called for.}) 28. e4 $18 {[%emt 0:01:34]} exd4 $2 {[%emt 0:00:00]} (28... exf4 {is a better defense.} 29. exf5 Rxe1 30. fxg6+ Kh8 31. Rxe1 fxg3 32. hxg3 d5) 29. exf5 {[%emt 0:00:06]} Rxe1 {[%emt 0:00:00]} 30. fxg6+ {[%emt 0:00:08]} (30. Rxe1 $142 {Re7 is the strong threat.} d5 31. Re7 (31. fxg6+ Kh8 $16) (31. Nxg6 dxc4 32. bxc4 Nc5 $14)) 30... Kh8 {[%emt 0:00:00]} 31. Rxe1 {[%emt 0:00:06]} Nc5 {[%emt 0:00:03] [#]} (31... d5 $142 32. Qb5 Qxb5 33. cxb5 Nd6) 32. Qa2 $2 {[%emt 0:00:27]} (32. Qa1 $1 $18 Nd3 33. Nf5) 32... Nd3 $2 {[%emt 0:00:26]} (32... d5 $11) 33. Rf1 {[%emt 0:00:40]} ({White must play} 33. Re7 $18 Nf2+ 34. Kg1) 33... Re8 $2 {[%emt 0:03:12]} (33... Nxb2 $14 34. Qxb2 d3) 34. Ba1 {[%emt 0:01:03]} Qc5 $2 {[%emt 0:02:19]} (34... d5 35. Bxd5 (35. cxd5 Ne1 $14) 35... Bxd5+ 36. cxd5 Qb5) 35. Qd2 {[%emt 0:00:24] White is clearly winning.} Re3 {[%emt 0:00:29]} 36. f5 {[%emt 0:00:46]} Bf6 {[%emt 0:00:35] [#]} 37. Qxe3 $3 {[%emt 0:00:54][%mdl 512] Weighted Error Value: White=0.38/Black=0.56} 1-0

[Event "13th KIIT Festival-A 2022"]
[Site "Bhubaneswar"]
[Date "2022.05.24"]
[Round "4.10"]
[White "Abdyjapar, Asyl"]
[Black "Rakesh, Kumar Nayak"]
[Result "1-0"]
[ECO "D17"]
[WhiteElo "2346"]
[BlackElo "2053"]
[Annotator "TA"]
[PlyCount "93"]
[EventDate "2022.05.15"]
[EventType "swiss"]
[EventCountry "IND"]
[SourceTitle "playchess.com"]
[Source "ChessBase"]
[SourceQuality "1"]
[TimeControl "5400+30"]

{[%evp 14,93,0,0,4,8,30,11,38,0,0,0,34,19,116,121,123,114,139,256,132,147,147,137,175,112,111,132,138,119,110,111,146,140,106,102,125,98,98,98,106,98,98,93,102,86,123,125,142,135,182,123,133,121,197,191,332,379,347,295,293,281,394,295,301,119,481,443,569,492,1268,1262,1382,910,1387,1356,29985,29986,29992,29993,29993,29994]} 1. d4 {[%emt 0:02:15]} d5 {[%emt 0:00:25]} 2. c4 {[%emt 0:00:17]} c6 {[%emt 0:00:02]} 3. Nf3 {[%emt 0:00:10]} Nf6 {[%emt 0:00:04]} 4. Nc3 {[%emt 0:00:07]} dxc4 {[%emt 0:00:38]} 5. a4 {[%emt 0:00:10]} Bf5 {[%emt 0:00:10]} 6. Ne5 {[%emt 0:00:08]} e6 {[%emt 0:00:35]} 7. g3 {[%emt 0:00:29]} Bb4 {[%emt 0:01:18]} 8. Bg2 {[%emt 0:00:08]} O-O {[%emt 0:01:18] D17: Slav Defence: 5 a4 Bf5: Lines with 6 Nh4 and 6 Ne5.} (8... Nbd7 $5 {[%cal Rd7e5]}) 9. O-O {[%emt 0:00:09]} h6 {[%emt 0:03:11]} 10. Nxc4 {[%emt 0:00:41]} a5 {[%emt 0:02:06] [#] The position is equal.} 11. Re1 $146 {[%emt 0:04:20]} ({Predecessor:} 11. Bf4 Bh7 12. Rc1 Nd5 13. Nxd5 exd5 14. Nd2 Re8 15. Nb3 Nd7 16. Bd2 Qb6 17. Bc3 {0-1 (40) Garrido Collantes,J (1948)-Santos Ruiz,M (2594) Dos Hermanas 2021}) 11... Bh7 {[%emt 0:03:38]} 12. e4 {[%emt 0:00:27]} Na6 {[%emt 0:03:07]} 13. Bf4 {[%emt 0:04:06]} b5 {[%emt 0:05:07]} (13... Nd7 $11 {keeps the balance.}) 14. Ne5 $16 {[%emt 0:01:27]} Qb6 {[%emt 0:04:49] [#]} 15. Nxc6 $1 {[%emt 0:03:59][%mdl 512]} Bxc3 {[%emt 0:05:37]} (15... Qxc6 16. axb5) 16. Ne7+ {[%emt 0:00:19][%mdl 64] Zwischenzug} Kh8 {[%emt 0:00:01]} 17. bxc3 {[%emt 0:00:09] Strongly threatening axb5.} b4 {[%emt 0:00:18]} 18. e5 {[%emt 0:06:54][%csl LRa8,LRf6]} Nd7 {[%emt 0:33:04]} 19. c4 {[%emt 0:03:14]} (19. Bxa8 $18 Rxa8 20. Qf3) 19... Rae8 {[%emt 0:05:11]} 20. c5 {[%emt 0:01:11]} Qc7 {[%emt 0:04:16]} 21. Nc6 {[%emt 0:00:26] White is much more active. The black rooks are badly placed.} Ndb8 {[%emt 0:00:50]} 22. Nxb8 {[%emt 0:04:55]} Rxb8 {[%emt 0:00:55] [#]} 23. Qb3 $1 {[%emt 0:00:30]} Rfd8 {[%emt 0:00:44]} 24. Red1 {[%emt 0:01:02]} Qa7 {[%emt 0:00:33]} 25. Bc1 {[%emt 0:03:30]} Nc7 {[%emt 0:00:51]} 26. Bb2 {[%emt 0:00:16]} Nd5 {[%emt 0:00:01]} 27. Rac1 {[%emt 0:00:50]} Rbc8 {[%emt 0:03:46]} 28. h3 {[%emt 0:07:31]} Rc7 {[%emt 0:00:24]} 29. f4 {[%emt 0:00:56]} Rcd7 {[%emt 0:02:35]} 30. Kh2 {[%emt 0:03:31]} Rc7 {[%emt 0:00:56]} 31. Rd2 {[%emt 0:00:29]} Rcd7 {[%emt 0:01:10]} (31... Qa6 $16 32. Qf3 Qc6) 32. Rf1 {[%emt 0:01:11]} (32. Rf2 $18) 32... Qa6 {[%emt 0:01:55][%cal Oh7e4]} 33. Rff2 {[%emt 0:00:52]} Ne7 {[%emt 0:00:59]} (33... Qc6 $16 34. g4 g6) 34. g4 $18 {[%emt 0:00:45]} Nc6 {[%emt 0:06:12]} (34... Nd5 $142 35. f5 Rc7 36. Bxd5 exd5) 35. d5 {[%emt 0:01:26]} exd5 {[%emt 0:01:04]} 36. Rxd5 {[%emt 0:00:04]} ({Don't blunder} 36. Bxd5 $2 {[#]} Be4 $1 37. Bxe4 Rxd2 $19) 36... Rxd5 {[%emt 0:00:10]} 37. Bxd5 {[%emt 0:00:04] Hoping for f5.} Ne7 {[%emt 0:05:06]} (37... Bd3 {might work better.} 38. f5 (38. Bxf7 Qa7 $11) 38... Ne7) 38. Bg2 {[%emt 0:00:57] A strong pair of Bishops.} Qe6 {[%emt 0:03:36]} 39. Qe3 {[%emt 0:03:44]} (39. Qg3 $18 {and White stays clearly on top.}) 39... Rd3 $2 {[%emt 0:00:43][%mdl 8192] A mistake that costs the game.} (39... f5 $16 {is more resistant.}) 40. Qc1 {[%emt 0:00:15]} Qb3 {[%emt 0:01:06] Threatens to win with ...Rd1.} 41. f5 {[%emt 0:00:21][%cal Bf4f5,Bf5f6,Bf6f7][%mdl 32]} Nd5 {[%emt 0:01:36]} (41... Rd1 $142) 42. c6 {[%emt 0:01:54]} Nc3 {[%emt 0:00:15]} 43. Qf4 {[%emt 0:01:04]} Rd8 {[%emt 0:01:00]} 44. e6 {[%emt 0:01:02]} fxe6 {[%emt 0:00:23]} 45. f6 {[%emt 0:00:25] White mates.} g5 {[%emt 0:00:31]} 46. Qc7 {[%emt 0:00:14][%csl Gf6][%cal Rc7g7]} Rg8 {[%emt 0:00:26]} 47. f7 {[%emt 0:00:06] Weighted Error Value: White=0.21 (precise) /Black=0.59} 1-0